lending/lending_fUSD_20260104
["ID","MTS","AMOUNT","RATE_DAILY","PERIOD"]
[400445737,1767562281116,-1016.47,0.00043548,30]
[400445738,1767562281165,-1016.47,0.00043548,30]
[400445739,1767562281213,-1016.47,0.00043548,30]
[400445740,1767562281261,-1016.47,0.00043548,30]
[400445741,1767562281315,-1016.47,0.00043548,30]
[400445742,1767562281370,-1016.47,0.00043548,30]
[400445743,1767562281428,-1016.47,0.00043548,30]
[400445744,1767562281486,-1016.47,0.00043548,30]
[400445745,1767562281546,-1016.47,0.00043548,30]
[400445746,1767562281605,-1016.47,0.00043548,30]
[400445747,1767562281661,-1016.47,0.00043548,30]
[400445748,1767562281714,-1016.47,0.00043548,30]
[400445749,1767562281768,-1016.47,0.00043548,30]
[400445750,1767562281820,-1016.47,0.00043548,30]
[400445751,1767562281872,-1016.47,0.00043548,30]
[400445752,1767562281924,-1016.47,0.00043548,30]
[400445753,1767562281974,-1016.47,0.00043548,30]
[400445754,1767562282024,-1016.49697225,0.00043548,30]
[400445755,1767562282079,-500.0,0.00043548,120]
[400445756,1767562282131,-500.0,0.00043548,120]
[400445757,1767562282180,-500.0,0.00043548,120]
[400445758,1767562282229,-500.0,0.00043548,120]
[400445759,1767562282281,-629.05306455,0.00043548,120]
[400445760,1767562282342,-4759.02,0.00043548,120]
[400445761,1767562282400,-4759.02,0.00043548,120]
[400445762,1767562282457,-4759.02,0.00043548,120]
[400445763,1767562282513,-4759.02,0.00043548,120]
[400445764,1767562282572,-4759.02,0.00043548,120]
[400445765,1767562282632,-4759.02,0.00043548,120]
[400445766,1767562282691,-4759.02,0.00043548,120]
[400445767,1767562282748,-4759.02,0.00043548,120]
[400445768,1767562282804,-4759.02,0.00043548,120]
[400445769,1767562282856,-4759.02,0.00043548,120]
[400445770,1767562282910,-4759.02,0.00043548,120]
[400445771,1767562282964,-4759.02,0.00043548,120]
[400445772,1767562283022,-4759.02,0.00043548,120]
[400445773,1767562283077,-4759.02,0.00043548,120]
[400445774,1767562283131,-4759.02,0.00043548,120]
[400445775,1767562283193,-4759.02,0.00043548,120]
[400445776,1767562283253,-4759.02,0.00043548,120]
[400445777,1767562283310,-4759.02,0.00043548,120]
[400445778,1767562283368,-4759.02,0.00043548,120]
[400445779,1767562283426,-4759.02,0.00043548,120]
[400445780,1767562283483,-4759.02,0.00043548,120]
[400445781,1767562283540,-4759.02,0.00043548,120]
[400445782,1767562283597,-4759.02,0.00043548,120]
[400445783,1767562283661,-4759.15610149,0.00043548,120]
[400445784,1767562283719,-500.0,0.00043548,120]
[400445785,1767562283775,-500.0,0.00043548,120]
[400445786,1767562283829,-500.0,0.00043548,120]
[400445787,1767562283881,-500.0,0.00043548,120]
[400445788,1767562283932,-500.0,0.00043548,120]
[400445789,1767562283985,-633.6,0.00043548,120]
[400445790,1767562284042,-500.0,0.00043548,120]
[400445791,1767562284098,-500.0,0.00043548,120]
[400445792,1767562284155,-500.0,0.00043548,120]
[400445793,1767562284214,-500.0,0.00043548,120]
[400445794,1767562284273,-500.0,0.00043548,120]
[400445795,1767562284334,-448.9975714,0.00043548,120]
[400445796,1767562284397,-500.0,0.00043548,120]
[400445797,1767562284462,-500.0,0.00043548,120]
[400445798,1767562284526,-50000.0,0.00043548,30]
[400445799,1767562284592,-50000.0,0.00043548,31]
[400445800,1767562284657,-50000.0,0.00043548,32]
[400445801,1767562284715,-150.0,0.00043548,120]
[400445802,1767562284769,-150.0,0.00043548,120]
[400445803,1767562284826,-1974.84583269,0.00043548,120]
[400445804,1767562284885,-50000.0,0.00043548,33]
[400445805,1767562284946,-50000.0,0.00043548,34]
[400445806,1767562285000,-1100.0,0.00043548,30]
[400445807,1767562285058,-1100.0,0.00043548,30]
[400445808,1767562285114,-1100.0,0.00043548,30]
[400445809,1767562285164,-1100.0,0.00043548,30]
[400445810,1767562285214,-1100.0,0.00043548,30]
[400445811,1767562285266,-171.572988,0.00043548,65]
[400445812,1767562285467,-151.0,0.00043548,65]
[400445813,1767562285524,-274.393869,0.00043548,65]
[400445814,1767562285580,-151.0,0.00043548,65]
[400445815,1767562285642,-151.0,0.00043548,65]
[400445816,1767562285702,-151.0,0.00043548,65]
[400445817,1767562285759,-151.0,0.00043548,65]
[400445818,1767562285817,-151.0,0.00043548,65]
[400445819,1767562285872,-151.0,0.00043548,65]
[400445820,1767562285927,-151.0,0.00043548,65]
[400445821,1767562285981,-151.0,0.00043548,65]
[400445822,1767562286037,-151.0,0.00043548,65]
[400445823,1767562286090,-151.0,0.00043548,65]
[400445824,1767562286139,-151.0,0.00043548,65]
[400445825,1767562286188,-151.0,0.00043548,65]
[400445826,1767562286237,-151.0,0.00043548,65]
[400445827,1767562286288,-151.0,0.00043548,65]
[400445828,1767562286339,-151.0,0.00043548,65]
[400445829,1767562286391,-151.0,0.00043548,65]
[400445830,1767562286445,-151.0,0.00043548,65]
[400445831,1767562286499,-226.914365,0.00043548,65]
[400445832,1767562286550,-151.0,0.00043548,65]
[400445833,1767562286602,-151.0,0.00043548,65]
[400445834,1767562286657,-269.0,0.00043548,65]
[400445835,1767562286710,-1100.0,0.00043548,30]
[400445836,1767562286762,-162.644743,0.00043548,65]
[400445837,1767562286812,-151.0,0.00043548,65]
[400445838,1767562286862,-151.0,0.00043548,60]
[400445839,1767562286913,-151.0,0.00043548,60]
[400445840,1767562286965,-239.568389,0.00043548,60]
[400445841,1767562287015,-240.971371,0.00043548,65]
[400445842,1767562287073,-240.971371,0.00043548,65]
[400445843,1767562287129,-240.971371,0.00043548,65]
[400445844,1767562287186,-240.971371,0.00043548,65]
[400445845,1767562287239,-240.971371,0.00043548,65]
[400445846,1767562287292,-240.971371,0.00043548,65]
[400445847,1767562287347,-240.971371,0.00043548,65]
[400445848,1767562287406,-240.971371,0.00043548,65]
[400445849,1767562287463,-240.971371,0.00043548,65]
[400445850,1767562287515,-240.971371,0.00043548,65]
[400445851,1767562287573,-240.971371,0.00043548,65]
[400445852,1767562287632,-240.971371,0.00043548,65]
[400445853,1767562287691,-240.971371,0.00043548,65]
[400445854,1767562287747,-240.971371,0.00043548,65]
[400445855,1767562287801,-240.971371,0.00043548,65]
[400445856,1767562287857,-240.971371,0.00043548,65]
[400445857,1767562287912,-240.971371,0.00043548,65]
[400445858,1767562287968,-240.971371,0.00043548,65]
[400445859,1767562288022,-240.971371,0.00043548,65]
[400445860,1767562288076,-240.97138,0.00043548,65]
[400445861,1767562288127,-151.0,0.00043548,65]
[400445862,1767562288179,-151.0,0.00043548,65]
[400445863,1767562288229,-151.0,0.00043548,65]
[400445864,1767562288280,-151.0,0.00043548,65]
[400445865,1767562288331,-156.877284,0.00043548,65]
[400445866,1767562288383,-151.0,0.00043548,65]
[400445867,1767562288434,-205.398447,0.00043548,65]
[400445868,1767562288487,-205.398447,0.00043548,65]
[400445869,1767562288543,-205.398447,0.00043548,65]
[400445870,1767562288599,-205.398447,0.00043548,65]
[400445871,1767562288655,-205.398447,0.00043548,65]
[400445872,1767562288712,-205.398447,0.00043548,65]
[400445873,1767562288764,-205.398447,0.00043548,65]
[400445874,1767562288815,-205.398447,0.00043548,65]
[400445875,1767562288864,-205.398447,0.00043548,65]
[400445876,1767562288912,-205.398447,0.00043548,65]
[400445877,1767562288959,-205.398447,0.00043548,65]
[400445878,1767562289005,-205.398447,0.00043548,65]
[400445879,1767562289057,-205.398447,0.00043548,65]
[400445880,1767562289108,-205.398447,0.00043548,65]
[400445881,1767562289160,-205.398447,0.00043548,65]
[400445882,1767562289212,-205.398447,0.00043548,65]
[400445883,1767562289262,-205.398447,0.00043548,65]
[400445884,1767562289320,-205.398447,0.00043548,65]
[400445885,1767562289383,-205.398447,0.00043548,65]
[400445886,1767562289441,-205.398446,0.00043548,65]
[400445887,1767562289498,-151.0,0.00043548,65]
[400445888,1767562289554,-151.0,0.00043548,65]
[400445889,1767562289607,-151.0,0.00043548,65]
[400445890,1767562289661,-151.0,0.00043548,65]
[400445891,1767562289719,-151.0,0.00043548,65]
[400445892,1767562289774,-151.0,0.00043548,65]
[400445893,1767562289825,-151.0,0.00043548,65]
[400445894,1767562289878,-151.0,0.00043548,65]
[400445895,1767562289931,-151.0,0.00043548,65]
[400445896,1767562289982,-151.0,0.00043548,65]
[400445897,1767562290040,-151.0,0.00043548,65]
[400445898,1767562290100,-151.0,0.00043548,65]
[400445899,1767562290157,-151.0,0.00043548,65]
[400445900,1767562290213,-151.0,0.00043548,65]
[400445901,1767562290269,-151.000003,0.00043548,65]
[400445902,1767562290321,-247.042005,0.00043548,65]
[400445903,1767562290377,-247.042005,0.00043548,65]
[400445904,1767562290431,-247.042005,0.00043548,65]
[400445905,1767562290484,-247.042005,0.00043548,65]
[400445906,1767562290540,-247.042005,0.00043548,65]
[400445907,1767562290723,-247.042005,0.00043548,65]
[400445908,1767562290778,-247.042005,0.00043548,65]
[400445909,1767562290829,-247.042005,0.00043548,65]
[400445910,1767562290878,-247.042005,0.00043548,65]
[400445911,1767562290927,-247.042005,0.00043548,65]
[400445912,1767562290981,-247.042005,0.00043548,65]
[400445913,1767562291063,-247.042005,0.00043548,65]
[400445914,1767562291141,-247.042005,0.00043548,65]
[400445915,1767562291202,-247.042005,0.00043548,65]
[400445916,1767562291279,-247.042005,0.00043548,65]
[400445917,1767562291350,-247.042005,0.00043548,65]
[400445918,1767562291401,-247.042005,0.00043548,65]
[400445919,1767562291453,-247.042005,0.00043548,65]
[400445920,1767562291505,-247.042005,0.00043548,65]
[400445921,1767562291558,-247.042012,0.00043548,65]
[400445922,1767562291611,-214.687358,0.00043548,65]
[400445923,1767562291665,-214.687358,0.00043548,65]
[400445924,1767562291717,-214.687358,0.00043548,65]
[400445925,1767562291770,-214.687358,0.00043548,65]
[400445926,1767562291821,-214.687358,0.00043548,65]
[400445927,1767562291874,-214.687358,0.00043548,65]
[400445928,1767562291931,-214.687358,0.00043548,65]
[400445929,1767562291984,-214.687358,0.00043548,65]
[400445930,1767562292037,-214.687358,0.00043548,65]
[400445931,1767562292092,-214.687358,0.00043548,65]
[400445932,1767562292144,-214.687358,0.00043548,65]
[400445933,1767562292196,-214.687358,0.00043548,65]
[400445934,1767562292247,-214.687358,0.00043548,65]
[400445935,1767562292305,-214.687358,0.00043548,65]
[400445936,1767562292365,-214.687358,0.00043548,65]
[400445937,1767562292430,-214.687358,0.00043548,65]
[400445938,1767562292498,-214.687358,0.00043548,65]
[400445939,1767562292558,-214.687358,0.00043548,65]
[400445940,1767562292620,-214.687358,0.00043548,65]
[400445941,1767562292682,-214.687354,0.00043548,65]
[400445942,1767562292742,-500.0,0.00043548,35]
[400445943,1767562292799,-500.0,0.00043548,35]
[400445944,1767562292855,-500.0,0.00043548,35]
[400445945,1767562292912,-500.0,0.00043548,35]
[400445946,1767562292965,-500.0,0.00043548,35]
[400445947,1767562293021,-500.0,0.00043548,35]
[400445948,1767562293080,-500.0,0.00043548,35]
[400445949,1767562293137,-500.0,0.00043548,35]
[400445950,1767562293191,-500.0,0.00043548,35]
[400445951,1767562293250,-500.0,0.00043548,35]
[400445952,1767562293310,-500.0,0.00043548,35]
[400445953,1767562293369,-500.0,0.00043548,35]
[400445954,1767562294080,1600.0,0.00025233,120]
[400445955,1767562295206,-10000.01,0.0001502,2]
[400445956,1767562295221,-10000.01,0.0001502,2]
[400445957,1767562295235,-1530.98,0.0001502,2]
[400445958,1767562308347,-6669.39247404,0.000209,30]
[400445959,1767562308376,-164.0,0.000211,30]
[400445960,1767562308416,-368.81,0.00027397,30]
[400445961,1767562308446,-197.82,0.000302,30]
[400445962,1767562308478,-272.01,0.00031378,30]
[400445963,1767562308506,-368.81,0.00031723,30]
[400445964,1767562308533,-5000.0,0.00031999,30]
[400445965,1767562308561,-45378.03260692,0.00032877,120]
[400445966,1767562308587,-156.21,0.00032877,120]
[400445967,1767562308615,-200.0,0.00034,120]
[400445968,1767562308642,-96105.6072202,0.000349,30]
[400445969,1767562308668,-664.5,0.00035616,37]
[400445970,1767562308695,-504.9,0.00035616,45]
[400445971,1767562308721,-601.2,0.00035616,37]
[400445972,1767562308747,-489.0,0.00035616,32]
[400445973,1767562308773,-474.3,0.00035616,50]
[400445974,1767562308799,-571.2,0.00035616,31]
[400445975,1767562308825,-587.1,0.00035616,46]
[400445976,1767562308851,-720.3,0.00035616,33]
[400445977,1767562308877,-561.9,0.00035616,47]
[400445978,1767562308908,-492.6,0.00035616,37]
[400445979,1767562308934,-613.8,0.00035616,47]
[400445980,1767562308960,-469.8,0.00035616,49]
[400445981,1767562308986,-576.0,0.00035616,31]
[400445982,1767562309012,-517.2,0.00035616,36]
[400445983,1767562309038,-510.6,0.00035616,37]
[400445984,1767562309065,-562.2,0.00035616,42]
[400445985,1767562309091,-739.8,0.00035616,36]
[400445986,1767562309118,-571.8,0.00035616,47]
[400445987,1767562309147,-1911.0,0.00035616,30]
[400445988,1767562309172,-400.0,0.00035616,90]
[400445989,1767562309199,-598.08,0.00035616,43]
[400445990,1767562309224,-260.62483711,0.00035616,60]
[400445991,1767562309250,-347.49978281,0.00035616,60]
[400445992,1767562309275,-260.62483711,0.00035616,60]
[400445993,1767562309301,-270.0,0.000357,30]
[400445994,1767562309328,-368.81,0.00036049,30]
[400445995,1767562309359,-176.70340371,0.000372,120]
[400445996,1767562309389,-250.0,0.00038,45]
[400445997,1767562309415,-211.995053,0.00038356,120]
[400445998,1767562309442,-211.995053,0.00038356,120]
[400445999,1767562309471,-211.995053,0.00038356,120]
[400446000,1767562309497,-211.995053,0.00038356,120]
[400446001,1767562309528,-211.995053,0.00038356,120]
[400446002,1767562309555,-211.995053,0.00038356,120]
[400446003,1767562309580,-211.995053,0.00038356,120]
[400446004,1767562309606,-211.995053,0.00038356,120]
[400446005,1767562309633,-211.995053,0.00038356,120]
[400446006,1767562309660,-211.995053,0.00038356,120]
[400446007,1767562309686,-211.995053,0.00038356,120]
[400446008,1767562309712,-211.995053,0.00038356,120]
[400446009,1767562309737,-211.995053,0.00038356,120]
[400446010,1767562309762,-211.995053,0.00038356,120]
[400446011,1767562309788,-211.995053,0.00038356,120]
[400446012,1767562309814,-211.995053,0.00038356,120]
[400446013,1767562309843,-211.995053,0.00038356,120]
[400446014,1767562309868,-211.995053,0.00038356,120]
[400446015,1767562309893,-211.995053,0.00038356,120]
[400446016,1767562309918,-211.995054,0.00038356,120]
[400446017,1767562309944,-155.365292,0.00038356,120]
[400446018,1767562309968,-172.537667,0.00038356,120]
[400446019,1767562309993,-166.561057,0.00038356,120]
[400446020,1767562310018,-151.0,0.00038356,120]
[400446021,1767562310288,-151.0,0.00038356,120]
[400446022,1767562310323,-151.0,0.00038356,120]
[400446023,1767562310347,-151.0,0.00038356,120]
[400446024,1767562310373,-151.0,0.00038356,120]
[400446025,1767562310402,-151.0,0.00038356,120]
[400446026,1767562310432,-151.0,0.00038356,120]
[400446027,1767562310457,-151.0,0.00038356,120]
[400446028,1767562310485,-173.339973,0.00038356,120]
[400446029,1767562310511,-187.814401,0.00038356,120]
[400446030,1767562310539,-151.0,0.00038356,120]
[400446031,1767562310573,-151.0,0.00038356,120]
[400446032,1767562310600,-151.0,0.00038356,120]
[400446033,1767562310627,-151.0,0.00038356,120]
[400446034,1767562310652,-151.0,0.00038356,120]
[400446035,1767562310679,-297.802382,0.00038356,120]
[400446036,1767562310716,-151.0,0.00038356,120]
[400446037,1767562310742,-158.501141,0.00038356,120]
[400446038,1767562310767,-158.501141,0.00038356,120]
[400446039,1767562310791,-158.501141,0.00038356,120]
[400446040,1767562310816,-158.501141,0.00038356,120]
[400446041,1767562310840,-158.501141,0.00038356,120]
[400446042,1767562310864,-158.501141,0.00038356,120]
[400446043,1767562310888,-158.501141,0.00038356,120]
[400446044,1767562310913,-158.501141,0.00038356,120]
[400446045,1767562310938,-158.501141,0.00038356,120]
[400446046,1767562310963,-158.501141,0.00038356,120]
[400446047,1767562310988,-158.501141,0.00038356,120]
[400446048,1767562311015,-158.501141,0.00038356,120]
[400446049,1767562311040,-158.501141,0.00038356,120]
[400446050,1767562311065,-158.501141,0.00038356,120]
[400446051,1767562311091,-158.501141,0.00038356,120]
[400446052,1767562311115,-158.501141,0.00038356,120]
[400446053,1767562311139,-158.501141,0.00038356,120]
[400446054,1767562311164,-158.501141,0.00038356,120]
[400446055,1767562311188,-158.501141,0.00038356,120]
[400446056,1767562311212,-158.501145,0.00038356,120]
[400446057,1767562311238,-739.246738,0.00038356,120]
[400446058,1767562311263,-739.246738,0.00038356,120]
[400446059,1767562311291,-739.246738,0.00038356,120]
[400446060,1767562311316,-739.246738,0.00038356,120]
[400446061,1767562311342,-739.246738,0.00038356,120]
[400446062,1767562311368,-739.246738,0.00038356,120]
[400446063,1767562311396,-739.246738,0.00038356,120]
[400446064,1767562311422,-739.246738,0.00038356,120]
[400446065,1767562311451,-739.246738,0.00038356,120]
[400446066,1767562311479,-739.246738,0.00038356,120]
[400446067,1767562311505,-739.246738,0.00038356,120]
[400446068,1767562311530,-739.246738,0.00038356,120]
[400446069,1767562311555,-739.246738,0.00038356,120]
[400446070,1767562311580,-739.246738,0.00038356,120]
[400446071,1767562311605,-739.246738,0.00038356,120]
[400446072,1767562311632,-739.246738,0.00038356,120]
[400446073,1767562311658,-739.246738,0.00038356,120]
[400446074,1767562311684,-739.24673,0.00038356,120]
[400446075,1767562311710,-171.178865,0.00038356,120]
[400446076,1767562311736,-161.899282,0.00038356,120]
[400446077,1767562311763,-184.543404,0.00038356,120]
[400446078,1767562311787,-153.640835,0.00038356,120]
[400446079,1767562311812,-162.032415,0.00038356,120]
[400446080,1767562311838,-189.659923,0.00038356,120]
[400446081,1767562311864,-151.000024,0.00038356,120]
[400446082,1767562311892,-151.0,0.00038356,120]
[400446083,1767562311919,-258.2,0.00038356,120]
[400446084,1767562311948,-151.0,0.00038356,120]
[400446085,1767562311973,-151.0,0.00038356,120]
[400446086,1767562312000,-151.0,0.00038356,120]
[400446087,1767562312027,-151.0,0.00038356,120]
[400446088,1767562312052,-151.0,0.00038356,120]
[400446089,1767562312077,-151.0,0.00038356,120]
[400446090,1767562312103,-151.0,0.00038356,120]
[400446091,1767562312127,-151.0,0.00038356,120]
[400446092,1767562312152,-151.0,0.00038356,120]
[400446093,1767562312179,-151.0,0.00038356,120]
[400446094,1767562312204,-151.0,0.00038356,120]
[400446095,1767562312230,-151.0,0.00038356,120]
[400446096,1767562312256,-245.63853,0.00038356,120]
[400446097,1767562312283,-151.0,0.00038356,120]
[400446098,1767562312308,-270.90094,0.00038356,120]
[400446099,1767562312333,-151.0,0.00038356,120]
[400446100,1767562312359,-208.779973,0.00038356,120]
[400446101,1767562312390,-3027.4517,0.00038888,30]
[400446102,1767562312414,-2000.0,0.00039,30]
[400446103,1767562312440,-2000.0,0.00039,30]
[400446104,1767562312467,-1000.0,0.00039,30]
[400446105,1767562312493,-2736.73307554,0.00039,120]
[400446106,1767562312519,-204.4829792,0.00039127,54]
[400446107,1767562312558,-556.775,0.00039521,55]
[400446108,1767562312584,-17704.23785582,0.000398,120]
[400446109,1767562312611,-304.26151546,0.0004,120]
[400446110,1767562312637,-7937.93,0.0004,30]
[400446111,1767562312663,-153.0,0.0004,120]
[400446112,1767562312688,-2000.0,0.0004,30]
[400446113,1767562312712,-1000.0,0.0004,30]
[400446114,1767562312738,-286.9,0.0004,30]
[400446115,1767562312763,-315.0,0.0004,120]
[400446116,1767562312788,-153.0,0.0004,120]
[400446117,1767562312817,-171.7153054,0.0004,120]
[400446118,1767562312843,-155.70529597,0.0004,30]
[400446119,1767562312869,-158.43651089,0.0004,120]
[400446120,1767562312901,-749.80533164,0.0004,30]
[400446121,1767562312933,-150.0,0.0004,120]
[400446122,1767562312963,-168.0,0.0004,30]
[400446123,1767562313002,-154.99,0.0004,120]
[400446124,1767562313034,-256.65,0.0004,120]
[400446125,1767562313066,-319.99,0.0004,120]
[400446126,1767562313100,-641.53,0.0004,120]
[400446127,1767562313131,-185.99,0.0004,120]
[400446128,1767562313160,-253.0,0.0004,30]
[400446129,1767562313189,-368.81,0.00040375,120]
[400446130,1767562313220,-1022.59309673,0.0004048,120]
[400446131,1767562313251,-574.81838163,0.000405,120]
[400446132,1767562313282,-6335.0,0.000407,117]
[400446133,1767562313313,-2515.23466972,0.000408,120]
[400446134,1767562313345,-153.0,0.000408,120]
[400446135,1767562313377,-153.0,0.000408,120]
[400446136,1767562313411,-272.01,0.00040808,120]
[400446137,1767562313443,-272.01,0.00040808,120]
[400446138,1767562313475,-272.01,0.00040808,120]
[400446139,1767562313506,-150.3005655,0.00040808,30]
[400446140,1767562313539,-152.56,0.00040954,120]
[400446141,1767562313570,-152.59,0.00040965,120]
[400446142,1767562313603,-158.0,0.00041,120]
[400446143,1767562313638,-250.0,0.00041,45]
[400446144,1767562313670,-245.9,0.00041,120]
[400446145,1767562313701,-304.91381076,0.00041,120]
[400446146,1767562313728,-1090.63324944,0.00041,120]
[400446147,1767562313757,-150.0,0.00041,120]
[400446148,1767562313787,-253.0,0.00041,34]
[400446149,1767562313820,-152.56,0.00041054,120]
[400446150,1767562313850,-152.59,0.00041065,120]
[400446151,1767562313878,-208.67841717,0.00041095,30]
[400446152,1767562313907,-600.0,0.00041096,120]
[400446153,1767562313937,-343.08,0.00041096,120]
[400446154,1767562313968,-256.59,0.00041096,120]
[400446155,1767562313998,-789.45,0.00041096,120]
[400446156,1767562314028,-1107.5,0.00041096,95]
[400446157,1767562314058,-841.5,0.00041096,69]
[400446158,1767562314087,-788.5,0.00041096,74]
[400446159,1767562314116,-1209.5,0.00041096,110]
[400446160,1767562314145,-949.5,0.00041096,116]
[400446161,1767562314174,-1002.0,0.00041096,71]
[400446162,1767562314204,-1157.5,0.00041096,77]
[400446163,1767562314234,-1240.5,0.00041096,105]
[400446164,1767562314264,-1053.0,0.00041096,91]
[400446165,1767562314295,-815.0,0.00041096,116]
[400446166,1767562314324,-1015.5,0.00041096,120]
[400446167,1767562314354,-790.5,0.00041096,51]
[400446168,1767562314386,-994.5,0.00041096,80]
[400446169,1767562314417,-952.0,0.00041096,114]
[400446170,1767562314448,-978.5,0.00041096,102]
[400446171,1767562314479,-1200.5,0.00041096,54]
[400446172,1767562314510,-936.5,0.00041096,107]
[400446173,1767562314548,-821.0,0.00041096,74]
[400446174,1767562314580,-1023.0,0.00041096,104]
[400446175,1767562314609,-783.0,0.00041096,50]
[400446176,1767562314639,-960.0,0.00041096,111]
[400446177,1767562314668,-862.0,0.00041096,92]
[400446178,1767562314699,-851.0,0.00041096,104]
[400446179,1767562314728,-1182.5,0.00041096,61]
[400446180,1767562314757,-937.0,0.00041096,88]
[400446181,1767562314784,-1233.0,0.00041096,95]
[400446182,1767562314812,-1102.5,0.00041096,58]
[400446183,1767562314841,-953.0,0.00041096,89]
[400446184,1767562314868,-159.15622616,0.00041096,54]
[400446185,1767562314896,-264.4988475,0.00041096,63]
[400446186,1767562314924,-996.8,0.00041096,111]
[400446187,1767562314952,-256.26219828,0.00041096,93]
[400446188,1767562314979,-500.0,0.00041096,31]
[400446189,1767562315007,-500.0,0.00041096,31]
[400446190,1767562315035,-500.0,0.00041096,31]
[400446191,1767562315064,-400.0,0.00041096,31]
[400446192,1767562315092,-500.0,0.00041096,31]
[400446193,1767562315119,-500.0,0.00041096,31]
[400446194,1767562315148,-500.0,0.00041096,31]
[400446195,1767562315180,-600.0,0.00041096,31]
[400446196,1767562315206,-500.0,0.00041096,31]
[400446197,1767562315233,-500.0,0.00041096,31]
[400446198,1767562315261,-500.0,0.00041096,31]
[400446199,1767562315288,-500.0,0.00041096,31]
[400446200,1767562315318,-500.0,0.00041096,31]
[400446201,1767562315347,-500.0,0.00041096,31]
[400446202,1767562315376,-500.0,0.00041096,31]
[400446203,1767562315408,-372.86720457,0.00041096,31]
[400446204,1767562315765,-500.0,0.00041096,31]
[400446205,1767562315792,-500.0,0.00041096,31]
[400446206,1767562315819,-500.0,0.00041096,31]
[400446207,1767562315845,-500.0,0.00041096,31]
[400446208,1767562315875,-500.0,0.00041096,31]
[400446209,1767562315901,-500.0,0.00041096,31]
[400446210,1767562315927,-500.0,0.00041096,31]
[400446211,1767562315952,-500.0,0.00041096,31]
[400446212,1767562315978,-500.0,0.00041096,31]
[400446213,1767562316004,-500.0,0.00041096,31]
[400446214,1767562316030,-500.0,0.00041096,31]
[400446215,1767562316056,-500.0,0.00041096,31]
[400446216,1767562316083,-500.0,0.00041096,31]
[400446217,1767562316112,-500.0,0.00041096,31]
[400446218,1767562316138,-500.0,0.00041096,31]
[400446219,1767562316164,-500.0,0.00041096,31]
[400446220,1767562316191,-500.0,0.00041096,31]
[400446221,1767562316218,-500.0,0.00041096,31]
[400446222,1767562316242,-500.0,0.00041096,31]
[400446223,1767562316267,-500.0,0.00041096,31]
[400446224,1767562316294,-500.0,0.00041096,31]
[400446225,1767562316319,-500.0,0.00041096,31]
[400446226,1767562316345,-500.0,0.00041096,31]
[400446227,1767562316371,-500.0,0.00041096,31]
[400446228,1767562316399,-500.0,0.00041096,31]
[400446229,1767562316425,-500.0,0.00041096,31]
[400446230,1767562316451,-500.0,0.00041096,31]
[400446231,1767562316481,-500.0,0.00041096,31]
[400446232,1767562316509,-500.0,0.00041096,31]
[400446233,1767562316536,-152.59,0.00041165,120]
[400446234,1767562316564,-152.59,0.00041265,120]
[400446235,1767562316604,-7937.93,0.000413,30]
[400446236,1767562316635,-152.59,0.00041365,120]